bitfinex/quotes_ETHUSD_20240730
["timestamp","ask_amount","ask_price","bid_price","bid_amount"]
[1722299780582,2.664,3323.1,3321.9,2.2797]
[1722299780896,2.40766,3322.8,3321.9,2.2797]
[1722299781077,2.49072196,3322.7,3321.9,2.2797]
[1722299781277,2.4078,3322.6,3322.0,0.22797]
[1722299781529,0.0829671,3322.5,3321.9,2.2797]
[1722299781732,1.04243939,3322.4,3321.9,2.2797]
[1722299782035,2.664,3322.7,3321.9,2.2797]
[1722299782036,0.08289223,3322.3,3321.9,2.2797]
[1722299782322,2.664,3322.7,3321.3,2.3025]
[1722299782323,2.40795,3322.4,3321.3,2.3025]
[1722299782525,2.40795,3322.4,3321.4,0.471126]
[1722299782526,0.08289223,3322.3,3321.4,0.471126]
[1722299782883,2.40783,3322.5,3321.4,2.879736]
[1722299783084,0.08272204,3322.4,3321.4,2.879736]
[1722299783783,0.08272204,3322.4,3321.5,2.40853]
[1722299783984,0.08272204,3322.4,3321.4,0.471126]
[1722299784229,2.664,3322.7,3321.5,0.06020633]
[1722299784429,0.08266757,3322.3,3321.6,2.40845]
[1722299784747,2.664,3322.7,3321.6,2.40845]
[1722299784748,0.08238844,3322.2,3321.6,2.40845]
[1722299784888,2.664,3322.7,3321.6,2.40845]
[1722299785250,2.664,3321.8,3320.7,2.4606]
[1722299785455,5.07239,3321.8,3320.7,2.70666]
[1722299785729,2.49084269,3321.7,3320.7,2.70666]
[1722299786025,2.40856,3321.5,3320.7,2.70666]
[1722299786538,2.664,3321.8,3320.7,2.70666]
[1722299786539,0.08247696,3321.4,3320.7,2.70666]
[1722299786689,2.40841,3321.7,3320.8,0.511583]
[1722299786890,0.0822965,3321.6,3320.8,0.511583]
[1722299787291,5.07237,3321.8,3320.8,0.511583]
[1722299787508,0.08222157,3321.7,3320.8,0.511583]
[1722299787733,2.40855,3321.5,3320.8,0.511583]
[1722299787930,2.40863,3321.4,3320.7,2.4606]
[1722299788102,2.49093157,3321.3,3320.7,2.4606]
[1722299788504,2.40877,3321.2,3320.7,2.4606]
[1722299788714,2.40877,3321.2,3320.1,5.40956]
[1722299788715,2.664,3321.0,3319.7,4.66009]
[1722299788919,2.664,3321.0,3319.8,0.466009]
[1722299789139,2.40906,3320.8,3319.8,0.466009]
[1722299789305,2.40906,3320.8,3319.7,2.2503]
[1722299789306,4.81818,3320.8,3319.7,2.2503]
[1722299789507,2.4909086,3320.7,3319.7,2.2503]
[1722299789697,2.4094,3320.4,3319.7,2.2503]
[1722299789893,0.08164597,3320.3,3319.2,2.2503]
[1722299790088,5.07355,3320.2,3319.2,2.2503]
[1722299790294,5.07355,3320.2,3319.3,0.22503]
[1722299790492,0.08164597,3320.1,3319.3,0.22503]
[1722299790953,2.49121597,3320.1,3319.2,2.2503]
[1722299791093,0.08164597,3320.1,3319.2,2.2503]
[1722299791316,0.08164597,3320.1,3319.0,4.38429752]
[1722299791572,2.40976,3319.9,3319.0,4.38429752]
[1722299791773,2.40978,3319.8,3319.0,4.38429752]
[1722299791922,2.40985,3319.7,3319.0,4.38429752]
[1722299792124,2.49108163,3319.6,3319.0,4.38429752]
[1722299792860,2.664,3319.4,3319.0,4.38429752]
[1722299793215,0.08078364,3319.3,3319.0,4.38429752]
[1722299793749,0.08044266,3319.2,3319.0,4.38429752]
[1722299793952,2.904978,3319.8,3319.0,4.38429752]
[1722299793953,5.314778,3319.8,3319.0,4.38429752]
[1722299794150,3.02178046,3319.7,3319.0,4.38429752]
[1722299794350,0.61192046,3319.7,3319.0,4.38429752]
[1722299795429,0.08044266,3319.7,3319.0,4.38429752]
[1722299797492,0.08044266,3319.7,3319.1,2.42]
[1722299797643,0.08044266,3319.7,3319.6,7.23984]
[1722299797969,4.84349269,3320.2,3320.1,4.81912]
[1722299798119,12.17,3321.1,3320.0,0.2]
[1722299798319,4.84349269,3321.2,3320.1,2.46977819]
[1722299798524,4.84349269,3321.2,3320.2,0.26697782]
[1722299798723,4.84349269,3321.2,3320.3,0.06022819]
[1722299798959,7.25229269,3321.2,3320.3,0.06022819]
[1722299799365,0.07291287,3321.1,3320.0,2.6096]
[1722299799694,2.664,3321.0,3320.0,0.2]
[1722299799981,2.664,3320.6,3320.0,0.2]
[1722299800537,0.07324012,3320.5,3320.0,0.2]
[1722299800955,2.664,3321.0,3320.1,2.40955]
[1722299801324,0.07319241,3320.9,3320.2,0.06023434]
[1722299801429,0.07319241,3320.9,3320.2,2.46971434]
[1722299801630,4.84349269,3321.2,3320.3,0.30720222]
[1722299801864,0.07312082,3320.8,3320.3,0.30720222]
[1722299802178,0.07312082,3320.7,3320.3,0.30720222]
[1722299802339,0.07312082,3320.7,3320.4,2.40929]
[1722299802574,4.84349269,3321.2,3320.4,2.40929]
[1722299802769,4.84349269,3321.2,3320.5,2.40927]
[1722299802958,0.07304922,3321.1,3320.5,2.40927]
[1722299803157,0.07304922,3321.1,3320.2,2.40948]
[1722299803367,0.07304922,3321.1,3320.7,2.40911]
[1722299803669,2.40847,3321.6,3320.4,2.4121]
[1722299803887,2.4087,3321.3,3320.0,0.4]
[1722299804186,2.4087,3321.3,3320.0,3.4]
[1722299804384,2.48202349,3321.2,3320.1,0.819817]
[1722299804734,0.07324349,3321.2,3320.1,0.819817]
[1722299805274,2.48200349,3321.2,3320.1,0.819817]
[1722299805574,2.40899,3320.9,3320.0,0.4]
[1722299805794,0.07324009,3320.8,3320.0,0.4]
[1722299805943,2.48229009,3320.8,3320.0,0.4]
[1722299806270,0.07324009,3320.8,3320.0,3.00961]
[1722299806785,0.07323329,3320.7,3320.0,0.6]
[1722299806938,2.48237329,3320.7,3320.0,0.6]
[1722299807128,0.24823733,3320.6,3320.0,0.6]
[1722299807981,0.07320942,3320.5,3320.0,0.6]
[1722299808330,2.40903,3320.9,3320.0,0.6]
[1722299808535,0.07320942,3320.8,3320.0,0.6]
[1722299808736,2.40914,3320.7,3320.0,0.6]
[1722299808942,0.31398026,3320.6,3320.0,0.6]
[1722299809582,0.07306626,3320.6,3320.0,0.6]
[1722299810107,2.67,3321.0,3320.0,0.6]
[1722299810375,2.40919,3320.7,3320.0,0.6]
[1722299810575,2.4822356,3320.6,3320.0,0.6]
[1722299810785,0.32125916,3320.6,3320.0,0.6]
[1722299810989,2.73047916,3320.6,3320.0,0.6]
[1722299811489,2.40943,3320.3,3320.0,0.6]
[1722299811702,0.32125916,3320.6,3320.0,0.6]
[1722299811995,2.40915,3320.7,3320.0,0.6]
[1722299812147,0.07303559,3320.5,3320.0,0.6]
[1722299812680,2.40929,3320.5,3320.0,0.6]
[1722299812878,0.07301513,3320.4,3320.0,0.6]
[1722299813096,2.4095,3320.2,3320.0,0.6]
[1722299813262,0.24095,3320.1,3320.0,0.6]
[1722299813452,0.3138833,3320.1,3320.0,0.6]
[1722299813647,2.7234433,3320.1,3320.0,0.6]
[1722299813911,0.3138833,3320.1,3320.0,0.6]
[1722299814084,0.0729333,3320.1,3320.0,0.6]
[1722299814283,2.4824933,3320.1,3320.0,0.6]
[1722299814486,4.81912,3320.1,3320.0,0.6]
[1722299814693,4.8920056,3320.1,3320.0,0.6]
[1722299815282,5.93528121,3320.1,3320.0,0.6]
[1722299815590,6.79580889,3320.1,3320.0,0.6]
[1722299816301,10.34580889,3320.1,3320.0,0.6]
[1722299816980,12.75536889,3320.1,3320.0,0.6]
[1722299817175,15.93636889,3320.1,3320.0,0.6]
[1722299817515,18.19676889,3320.1,3320.0,0.6]
[1722299818443,18.1968647,3320.1,3320.0,0.6]
[1722299818938,13.0159047,3320.1,3320.0,0.6]
[1722299820475,15.4254647,3320.1,3320.0,0.6]
[1722299820680,13.0159047,3320.1,3320.0,0.6]
[1722299821119,15.42544244,3320.1,3320.0,0.6]
[1722299821293,13.01588244,3320.1,3320.0,0.6]
[1722299821498,9.46588244,3320.1,3320.0,0.6]
[1722299822112,2.41009,3319.4,3319.0,4.38429752]
[1722299822299,2.41029,3319.1,3319.0,4.38429752]
[1722299822502,4.82058,3319.1,3319.0,4.38429752]
[1722299823033,8.34652651,3319.1,3319.0,4.38429752]
[1722299823193,11.89652651,3319.1,3319.0,4.38429752]
[1722299823398,15.07752651,3319.1,3319.0,4.38429752]
[1722299823593,14.41729469,3319.1,3319.0,4.38429752]
[1722299823915,11.23629469,3319.1,3319.0,4.38429752]
[1722299824093,10.68629469,3319.1,3319.0,4.38429752]
[1722299824609,8.27600469,3319.1,3319.0,4.38429752]
[1722299824790,5.86571469,3319.1,3319.0,4.38429752]
[1722299824990,2.48232289,3319.1,3319.0,4.38429752]
[1722299825436,0.07203289,3319.1,3319.0,4.38429752]
[1722299825935,2.41029,3319.1,3319.0,4.38429752]
[1722299826234,4.89210099,3319.1,3319.0,4.38429752]
[1722299826453,8.45610099,3319.1,3319.0,4.38429752]
[1722299826656,9.30171109,3319.1,3319.0,4.38429752]
[1722299829158,19.48664434,3319.1,3319.0,4.38429752]
[1722299829754,21.89693434,3319.1,3319.0,1.97166249]
[1722299829919,21.89693434,3319.1,3319.0,0.46518249]
[1722299830113,3.181,3318.7,3317.4,2.3468]
[1722299830366,2.41105,3318.1,3317.4,2.3468]
[1722299830532,2.4111,3318.0,3317.4,2.3468]
[1722299830854,2.41124,3317.8,3317.4,2.3468]
[1722299831013,0.0714732,3317.9,3317.4,2.3468]
[1722299831217,0.0712547,3317.7,3317.4,2.3468]
[1722299831468,2.41096,3318.2,3317.4,2.3468]
[1722299831662,0.0712547,3317.6,3317.4,2.3468]
[1722299831959,0.0712547,3317.5,3317.4,2.3468]
[1722299832161,2.41129,3317.8,3317.4,2.3468]
[1722299832380,0.0712547,3317.7,3317.4,2.3468]
[1722299832558,1.32292627,3318.2,3317.4,2.3468]
[1722299832789,0.0712547,3318.1,3317.5,0.29496291]
[1722299832992,4.84349269,3318.3,3317.5,0.29496291]
[1722299833308,0.07113176,3318.2,3317.5,2.70634291]
[1722299833611,0.07113176,3318.2,3318.1,2.4157]
[1722299834047,4.84349269,3318.8,3318.1,4.82671]
[1722299834162,4.84349269,3318.8,3318.2,0.06026601]
[1722299834729,4.84349269,3318.8,3318.2,2.47120601]
[1722299835023,4.84349269,3319.3,3319.2,2.41021]
[1722299835170,5.97326,3320.6,3319.1,2.4157]
[1722299835171,4.84349269,3320.0,3319.1,2.4157]
[1722299835366,4.84349269,3320.0,3319.2,0.24157]
[1722299835607,4.84349269,3320.0,3319.3,0.06025074]
[1722299836322,4.84349269,3320.0,3319.3,0.06024566]
[1722299836536,4.84349269,3320.0,3319.3,2.47037566]
[1722299836738,4.84349269,3320.0,3319.3,0.06024566]
[1722299836957,4.84349269,3320.0,3319.3,0.33199723]
[1722299837104,2.40984,3319.8,3319.1,2.4157]
[1722299837438,7.25313269,3320.0,3319.1,2.4157]
[1722299837439,4.84349269,3320.0,3319.1,2.4157]
[1722299839319,4.84349269,3320.0,3319.2,2.47046181]
[1722299839644,7.25313269,3320.0,3319.1,2.4157]
[1722299839801,4.84349269,3320.0,3319.1,2.4157]
[1722299839996,4.84349269,3320.0,3319.2,0.24157]
[1722299841944,4.84349269,3320.0,3319.3,0.06025061]
[1722299842313,4.84349269,3320.0,3319.6,2.40992]
[1722299842705,4.84349269,3320.0,3319.7,0.06024278]
[1722299842932,4.84349269,3320.0,3319.9,4.70021]
[1722299843136,4.84349269,3320.7,3319.9,5.411216]
[1722299843650,4.84349269,3320.7,3320.0,2.40962]
[1722299844445,0.06763565,3320.6,3320.0,2.40962]
[1722299844603,0.06763565,3320.6,3319.9,3.001506]
[1722299845004,0.06763565,3320.6,3319.9,2.2905]
[1722299845245,0.06763565,3320.6,3320.0,0.06022976]
[1722299845613,0.06763565,3320.6,3320.3,2.40941]
[1722299846013,0.06763565,3320.6,3320.1,2.40956]
[1722299846430,0.06763565,3320.6,3320.2,2.46968822]
[1722299846654,0.06763565,3320.6,3320.3,0.30719702]
[1722299846975,0.06763565,3320.6,3320.2,2.40948]
[1722299847333,0.06763565,3320.6,3319.9,2.2905]
[1722299847334,0.06763565,3320.6,3320.3,2.46961821]
[1722299847954,0.06763565,3320.6,3320.2,2.40947]
[1722299848461,12.17,3321.0,3320.5,2.40924]
[1722299848664,12.17,3321.0,3320.3,2.71057503]
[1722299848870,12.17,3321.0,3320.3,0.30117503]
[1722299849180,12.17,3321.0,3320.3,0.06022803]
[1722299849465,12.17,3321.0,3320.1,2.40956]
[1722299850062,12.17,3321.0,3319.9,4.90016]
[1722299850220,12.17,3321.0,3319.9,2.4905]
[1722299850419,2.40913,3320.7,3319.9,2.4905]
[1722299850624,2.890942,3320.7,3319.9,0.2]
[1722299851076,2.890952,3320.7,3319.9,0.2]
[1722299851236,0.481812,3320.7,3319.9,0.2]
[1722299851435,14.57893,3321.0,3319.9,0.2]
[1722299851691,12.17,3321.0,3320.0,2.40961]
[1722299852373,12.17,3321.0,3320.1,2.40955]
[1722299852573,12.17,3321.0,3319.9,2.60966]
[1722299852808,12.17,3321.0,3320.0,2.911523]
[1722299853910,12.17,3321.0,3320.1,2.40603113]
[1722299854115,4.84349269,3321.1,3320.2,2.40946]
[1722299854269,4.84349269,3321.1,3320.3,0.06023112]
[1722299854471,4.84349269,3321.1,3320.4,2.40933]
[1722299854714,4.84349269,3321.1,3320.3,0.06023112]
[1722299855517,5.56871096,3321.1,3320.2,2.40946]
[1722299856188,5.56871096,3321.1,3319.9,0.4]
[1722299856389,2.40929,3320.5,3319.9,0.4]
[1722299857023,2.40936,3320.4,3319.9,0.4]
[1722299857204,2.40947,3320.3,3319.9,0.4]
[1722299857388,0.481875,3320.3,3319.9,0.4]
[1722299857593,2.40935,3320.4,3319.9,0.4]
[1722299858897,2.40949,3320.2,3319.9,0.4]
[1722299859298,2.40939,3320.4,3319.9,0.4]
[1722299859499,0.06794666,3320.1,3319.9,0.4]
[1722299859741,2.40939,3320.4,3319.9,0.4]
[1722299859894,0.06794666,3320.0,3319.9,0.4]
[1722299860099,4.84349269,3320.6,3319.9,0.4]
[1722299860533,0.06795008,3320.5,3319.9,0.4]
[1722299863633,3.45243985,3320.4,3319.9,0.4]
[1722299863965,2.40949,3320.2,3319.9,0.4]
[1722299864258,1.45637309,3320.1,3319.9,0.4]
[1722299864445,0.41328324,3320.1,3319.9,0.4]
[1722299864618,1.04315342,3320.0,3319.9,0.4]
[1722299864819,1.11116502,3320.0,3319.9,0.4]
[1722299865222,3.52079502,3320.0,3319.9,0.4]
[1722299865539,4.11382352,3320.0,3319.9,0.4]
[1722299865931,1.70419352,3320.0,3319.9,0.4]
[1722299866654,0.6610401,3320.0,3319.9,0.4]
[1722299866827,0.0680116,3320.0,3319.9,0.4]
[1722299867173,1.11123251,3320.0,3319.9,0.4]
[1722299869730,1.11117236,3320.0,3319.9,0.4]
[1722299869930,1.11117234,3320.0,3319.9,0.4]
[1722299872796,0.0680116,3320.0,3319.9,0.4]
[1722299873011,3.45257293,3320.3,3319.9,0.4]
[1722299873186,1.45620679,3320.2,3319.9,0.4]
[1722299873513,1.04314293,3320.1,3319.9,0.4]
[1722299874095,0.06780313,3320.0,3319.9,0.4]
[1722299874293,1.11094606,3320.0,3319.9,0.4]
[1722299876228,1.11094729,3320.0,3319.9,0.4]
[1722299879116,0.06780313,3320.0,3319.9,0.4]
[1722299879317,1.04314771,3320.0,3319.9,0.4]
[1722299879609,1.11095769,3320.0,3319.9,0.4]
[1722299881346,4.16001109,3320.0,3319.9,0.4]
[1722299881547,4.15999651,3320.0,3319.9,0.4]
[1722299882142,6.56962651,3320.0,3319.9,0.4]
[1722299882980,4.15999651,3320.0,3319.9,0.4]
[1722299883277,1.4821509,3320.0,3319.9,0.4]
[1722299883477,1.11103657,3320.0,3319.9,0.4]
[1722299884184,1.11082595,3320.0,3319.9,0.4]
[1722299884390,0.06780998,3320.0,3319.9,0.4]
[1722299884688,1.57362228,3320.5,3319.9,0.4]
[1722299884988,1.04298219,3320.4,3320.0,0.06023318]
[1722299885133,1.04298219,3320.3,3320.0,0.06023318]
[1722299885333,1.04298219,3320.2,3319.9,0.4]
[1722299885580,1.04298219,3320.1,3319.9,0.4]
[1722299885875,1.57362228,3320.5,3319.9,0.4]
[1722299885876,1.04298219,3320.0,3319.9,0.4]
[1722299886179,1.04298219,3320.4,3319.9,0.68700748]
[1722299886396,1.57362228,3320.5,3319.9,0.68700748]
[1722299886397,1.04298219,3320.3,3319.9,0.68700748]
[1722299886536,1.04298219,3320.2,3320.0,2.40963]
[1722299886734,1.57362228,3320.7,3320.0,2.40963]
[1722299886981,1.04295666,3320.6,3320.1,0.30966375]
[1722299887195,1.57362228,3320.7,3320.1,2.71919375]
[1722299887196,1.04295666,3320.5,3320.1,2.71919375]
[1722299887335,1.57362228,3320.7,3320.2,2.3317]
[1722299887690,1.0428377,3320.6,3320.2,4.74114]
[1722299887831,4.84349269,3320.9,3320.2,4.74114]
[1722299888036,1.04281931,3320.8,3320.3,0.74603637]
[1722299888252,4.84349269,3320.9,3320.4,0.06022571]
[1722299889550,0.06828492,3320.8,3320.4,0.06022571]
[1722299891203,0.06828492,3320.8,3320.2,2.3317]
[1722299892252,0.06828492,3320.8,3320.3,0.06022522]
[1722299892453,0.06828492,3320.8,3320.4,0.48014152]
[1722299892698,0.06828492,3320.8,3320.5,0.06022522]
[1722299893117,1.57374509,3321.1,3320.5,0.06022522]
[1722299893301,0.06837714,3320.7,3320.5,0.06022522]
[1722299893500,1.57374509,3321.0,3320.5,0.06022522]
[1722299893705,0.06837031,3320.6,3320.4,0.48014152]
[1722299893880,1.57436831,3321.0,3320.5,0.0602252]
[1722299894625,2.40906,3320.8,3319.8,2.3686]
[1722299894795,1.57436831,3320.7,3319.9,0.4]
[1722299894996,1.57436831,3320.4,3319.9,0.4]
[1722299895323,2.40907,3320.8,3319.8,2.3686]
[1722299895324,1.57436831,3320.5,3319.8,2.3686]
[1722299895617,1.57436831,3320.4,3319.8,2.3686]
[1722299895828,2.671,3320.9,3319.8,2.3686]
[1722299895829,1.57436831,3320.6,3319.9,0.4970941]
[1722299895995,1.57436831,3320.6,3319.9,2.9067841]
[1722299896181,1.57436831,3320.7,3320.0,2.40962]
[1722299896386,1.57436831,3320.8,3320.1,2.46978937]
[1722299896682,1.57436831,3320.8,3320.1,0.06022937]
[1722299896884,1.57436831,3320.8,3320.1,0.35089931]
[1722299896885,1.57540993,3320.8,3320.1,0.35089931]
[1722299897195,1.57540993,3320.8,3320.1,2.76045931]
[1722299897976,1.57540993,3320.8,3320.1,0.35089931]
[1722299898818,1.57540993,3320.8,3320.2,2.40947]
[1722299899031,1.57540993,3321.0,3320.3,0.06022648]
[1722299899184,1.57540993,3320.9,3320.3,0.06022648]
[1722299899747,1.57540993,3320.8,3320.0,2.40963]
[1722299899901,2.40897,3321.0,3320.0,2.40963]
[1722299900233,1.94725878,3320.9,3320.1,0.06022884]
[1722299900497,1.57561957,3320.8,3320.1,0.06022884]
[1722299900923,1.57561957,3320.8,3320.1,2.46977884]
[1722299901121,1.57561957,3320.9,3320.1,2.46977884]
[1722299901366,1.57561957,3320.9,3320.2,0.30112878]
[1722299901519,1.57561957,3320.9,3320.3,0.06022647]
[1722299903056,6.97051349,3321.2,3320.3,0.06022647]
[1722299903256,1.57578654,3320.9,3320.3,0.06022647]
[1722299903664,2.40943,3320.3,3319.9,0.4]
[1722299903878,2.671,3320.0,3319.9,0.4]
[1722299904214,1.57554433,3320.1,3319.9,0.4]
[1722299904404,0.06830541,3320.0,3319.9,0.4]
[1722299904722,1.57554433,3320.5,3319.9,0.4]
[1722299904922,0.068179,3320.0,3319.9,0.4]
[1722299905169,4.84349269,3320.6,3319.9,0.4]
[1722299905347,0.068138,3320.0,3319.9,0.4]
[1722299905557,4.84349269,3320.6,3319.9,2.80969]
[1722299905739,0.0680116,3320.0,3319.9,3.090659]
[1722299905924,4.84349269,3320.6,3319.9,3.090659]
[1722299906124,0.0680116,3320.0,3319.9,3.090659]
[1722299906340,4.84349269,3320.6,3319.9,0.680969]
[1722299906551,0.0680116,3320.0,3319.9,0.4]
[1722299906747,4.84349269,3320.6,3319.9,0.4]
[1722299906960,0.06809017,3320.0,3319.9,0.4]
[1722299907137,4.84349269,3320.6,3319.9,0.4]
[1722299907339,0.06809017,3320.0,3319.9,0.680978]
[1722299907543,1.57551759,3320.8,3319.9,0.680978]
[1722299907741,0.06809017,3320.0,3319.9,0.680978]
[1722299908061,1.57551759,3320.9,3319.9,0.680978]
[1722299908221,1.57551759,3320.9,3319.9,3.15090634]
[1722299908362,1.57551759,3320.9,3320.0,0.31509063]
[1722299908568,0.06810727,3320.8,3320.7,0.2]
[1722299909273,1.57540006,3320.9,3320.7,0.2]
[1722299909506,0.06824393,3320.8,3320.7,0.2]
[1722299910507,1.57540006,3321.1,3320.7,0.2]
[1722299910715,0.06826785,3320.8,3320.7,0.2]
[1722299910867,1.57540006,3321.1,3320.7,0.2]
[1722299911214,0.06826785,3321.0,3320.7,0.2]
[1722299911932,2.40905,3320.8,3320.7,0.2]
[1722299912390,2.84922863,3320.8,3320.7,0.2]
[1722299912594,2.84922863,3320.8,3320.7,0.4]
[1722299912794,5.25827863,3320.8,3320.7,0.4]
[1722299914632,7.92927863,3320.8,3320.7,0.4]
[1722299914800,8.95178402,3320.8,3320.7,0.4]
[1722299915014,11.49200392,3320.8,3320.7,0.4]
[1722299915195,12.08295392,3320.8,3320.7,0.1203368]
[1722299915738,12.08294424,3320.8,3320.7,0.1203368]
[1722299916834,12.08252095,3320.8,3320.7,0.1203368]
[1722299917602,14.28799293,3320.8,3320.7,0.1203368]
[1722299918104,12.08252095,3320.8,3320.7,0.1203368]
[1722299918744,14.15730546,3320.8,3320.7,0.1203368]
[1722299918948,12.08253431,3320.8,3320.7,0.1203368]
[1722299919103,17.11630147,3320.8,3320.7,0.1203368]
[1722299919316,17.24747216,3320.8,3320.7,0.1203368]
[1722299919521,14.83842216,3320.8,3320.7,0.1203368]
[1722299919752,17.24747216,3320.8,3320.7,0.1203368]
[1722299919955,15.04158142,3320.8,3320.7,0.1203368]
[1722299920629,12.63253142,3320.8,3320.7,0.1203368]
[1722299920831,12.63251921,3320.8,3320.7,0.1203368]
[1722299921556,12.50136073,3320.8,3320.7,0.1203368]
[1722299921938,12.63251678,3320.8,3320.7,0.1203368]
[1722299922818,15.04156678,3320.8,3320.7,0.1203368]
[1722299923319,12.63251678,3320.8,3320.7,0.1203368]
[1722299923545,14.83683304,3320.8,3320.7,0.1203368]
[1722299923860,15.04156678,3320.8,3320.7,0.1203368]
[1722299924260,12.63251678,3320.8,3320.7,0.1203368]
[1722299924419,14.83668779,3320.8,3320.7,0.1203368]
[1722299924758,12.63251678,3320.8,3320.7,0.1203368]
[1722299924917,12.50136073,3320.8,3320.7,0.1203368]
[1722299925117,14.83696332,3320.8,3320.7,0.1203368]
[1722299925318,11.28688686,3320.8,3320.7,0.1203368]
[1722299925549,8.05992337,3320.8,3320.7,0.1203368]
[1722299925824,9.81863746,3320.8,3320.7,0.1203368]
[1722299926454,7.92885534,3320.8,3320.7,0.1203368]
[1722299926623,0.43975534,3320.8,3320.7,0.1203368]
[1722299927188,1.64336318,3320.8,3320.7,0.1203368]
[1722299927850,0.06833274,3320.8,3320.7,0.1203368]
[1722299928274,1.57530171,3320.9,3320.7,0.1203368]
[1722299928600,4.56136205,3321.2,3320.7,0.1203368]
[1722299928601,0.0679159,3320.8,3320.7,0.1203368]
[1722299928962,1.57530171,3321.1,3320.7,0.1203368]
[1722299929150,0.06814142,3320.8,3320.7,0.1203368]
[1722299929394,1.57530171,3321.0,3320.7,0.1203368]
[1722299929694,0.06818925,3320.8,3320.7,0.1203368]
[1722299929876,1.57530171,3321.0,3320.7,0.1203368]
[1722299930088,0.06818925,3320.9,3320.7,0.1203368]
[1722299931156,1.57638088,3321.0,3320.7,0.1203368]
[1722299931358,0.06833956,3320.8,3320.7,0.1203368]
[1722299931574,1.57638088,3321.0,3320.7,0.1203368]
[1722299931776,0.06833956,3320.8,3320.7,0.1203368]
[1722299931987,1.57638088,3321.0,3320.7,0.1203368]
[1722299932208,1.57638088,3321.2,3320.8,2.352]
[1722299932409,1.57638088,3321.3,3320.9,0.24723368]
[1722299932618,1.57638088,3321.4,3320.9,0.24723368]
[1722299932904,1.57638088,3321.5,3321.0,0.26594529]
[1722299933367,1.57638088,3321.4,3320.9,0.06021715]
[1722299933867,1.57638088,3321.3,3320.9,0.06021715]
[1722299934068,2.40861,3321.5,3320.9,0.06021715]
[1722299934267,1.57567359,3321.3,3320.9,0.06021715]
[1722299934671,1.57567359,3321.3,3320.8,2.352]
[1722299934881,0.06843863,3321.2,3320.9,0.0602173]
[1722299935181,2.4089,3321.1,3320.7,0.1203368]
[1722299935384,2.40891,3321.0,3320.7,0.1203368]
[1722299935591,2.47734863,3321.0,3320.7,0.1203368]
[1722299937018,2.40905,3320.8,3320.7,0.1203368]
[1722299937203,0.06843863,3321.0,3320.7,0.1203368]
[1722299937405,0.06839083,3320.8,3320.7,0.1203368]
[1722299937576,1.57464497,3320.9,3320.7,0.1203368]
[1722299937913,0.06839083,3320.8,3320.7,0.1203368]
[1722299938617,4.29826397,3321.3,3320.7,0.1203368]
[1722299938618,1.57464497,3321.3,3320.7,0.1203368]
[1722299939122,0.06841474,3321.2,3320.7,0.1203368]
[1722299939318,1.57464497,3321.4,3320.7,0.1203368]
[1722299939319,1.57464497,3321.4,3320.7,0.37931701]
[1722299939527,0.06841474,3321.1,3320.8,0.06022201]
[1722299939829,1.57464497,3321.4,3320.8,0.06022201]
[1722299940324,0.0684284,3321.3,3320.8,0.06022201]
[1722299940892,1.64324417,3321.3,3320.8,0.06022201]
[1722299941386,1.64324417,3321.3,3320.7,0.1203368]
[1722299941387,3.98369577,3321.1,3320.7,0.1203368]
[1722299941595,3.98378577,3321.0,3320.7,0.1203368]
[1722299941812,4.05236445,3321.0,3320.7,0.1203368]
[1722299942437,5.08005,3320.8,3320.7,0.1203368]
[1722299942757,5.08005,3320.8,3319.9,2.8292]
[1722299942758,2.40927,3320.5,3319.9,2.4292]
[1722299942923,3.98377345,3320.5,3319.9,2.4292]
[1722299943311,0.06849669,3320.4,3319.9,2.4292]
[1722299944424,0.06849669,3320.4,3319.9,2.9733334]
[1722299944753,4.84349269,3320.8,3319.9,2.9733334]
[1722299944754,0.06823709,3320.3,3319.9,5.3830334]
[1722299945114,6.41799614,3320.8,3319.9,2.9733334]
[1722299945419,0.06823709,3320.2,3319.9,5.322758]
[1722299945620,4.84349269,3320.8,3320.0,0.0602267]
[1722299945945,4.84349269,3320.8,3320.0,0.59852517]
[1722299946125,0.06817902,3320.7,3320.0,0.59852517]
[1722299946324,0.06817902,3320.7,3320.0,0.53829847]
[1722299946769,0.06817902,3320.7,3320.0,2.94791847]
[1722299947239,0.06817902,3320.7,3320.1,0.0602265]
[1722299947450,0.06817902,3320.7,3320.2,0.3008145]
[1722299947606,0.06817902,3320.7,3320.3,0.0602265]
[1722299948045,4.84349269,3320.8,3320.3,0.0602265]
[1722299948206,0.06821659,3320.6,3320.3,0.0602265]
[1722299948410,4.84349269,3320.8,3320.3,0.0602265]
[1722299948650,0.06821659,3320.5,3320.3,0.0602265]
[1722299948849,4.84349269,3320.8,3320.3,0.3372856]
[1722299949007,0.06822342,3320.4,3320.3,5.2138056]
[1722299949212,4.84349269,3320.8,3320.4,2.40934]
[1722299949947,4.84349269,3320.8,3320.5,2.40927]
[1722299950147,4.84349269,3320.8,3320.6,0.240927]
[1722299950352,1.57430856,3321.2,3320.7,0.06022422]
[1722299950550,1.57430856,3321.4,3320.7,0.06022422]
[1722299950950,1.57430856,3321.4,3320.8,2.40903]
[1722299951152,4.84349269,3321.5,3321.0,2.4162]
[1722299951355,1.57430856,3321.6,3321.0,2.4162]
[1722299951654,1.57430856,3321.6,3321.1,0.06021545]
[1722299951854,1.57467137,3321.7,3321.1,0.06021545]
[1722299952528,12.17,3321.8,3321.1,2.95758299]
[1722299952708,12.17,3321.8,3321.1,0.54875299]
[1722299952912,13.74439421,3321.8,3321.1,0.54875299]
[1722299953126,13.74439421,3321.8,3321.1,0.48853754]
[1722299954157,12.17,3321.8,3321.2,0.0602114]
[1722299954341,12.17,3321.8,3321.2,0.59759429]
[1722299954552,12.17,3321.8,3321.1,0.48853754]
[1722299954553,14.57835,3321.8,3321.1,0.48853754]
[1722299954879,16.15253898,3321.8,3321.0,2.4162]
[1722299955017,16.15228149,3321.8,3321.0,2.4162]
[1722299955347,3.98228149,3321.8,3321.0,2.4162]
[1722299955541,1.57393149,3321.8,3321.0,2.4162]
[1722299955727,3.98227149,3321.8,3321.0,2.4162]
[1722299955930,2.40842,3321.7,3321.0,2.4162]
[1722299956157,5.37275691,3321.8,3321.0,2.4162]